[Event "*** SCC Grand Prix: Titled Tuesday Blitz"]
[Site "Chess.com"]
[Date "2020.07.07"]
[Round "5"]
[White "XiaoKangZhong"]
[Black "Morshynska"]
[Result "1-0"]
[WhiteElo "2399"]
[BlackElo "2184"]
[TimeControl "180+1"]
[EndTime "10:55:40 PDT"]
[Termination "XiaoKangZhong won on time"]

1. e4 {[%clk 0:03:00.9]} 1... Nc6 {[%clk 0:02:58.4]} 2. d4 {[%clk 0:02:59.9]}
2... d6 {[%clk 0:02:58.1]} 3. Nc3 {[%clk 0:02:56.8]} 3... g6 {[%clk 0:02:54.9]}
4. g3 {[%clk 0:02:55.8]} 4... Bg7 {[%clk 0:02:54.4]} 5. Nge2 {[%clk 0:02:56.4]}
5... Bg4 {[%clk 0:02:47.6]} 6. Qd3 {[%clk 0:02:41.3]} 6... a6 {[%clk 0:02:34.2]}
7. Bg2 {[%clk 0:02:38.9]} 7... e5 {[%clk 0:02:14.2]} 8. d5 {[%clk 0:02:34.9]}
8... Nce7 {[%clk 0:02:04.1]} 9. O-O {[%clk 0:02:31.5]} 9... Qd7 {[%clk
0:01:59.3]} 10. a4 {[%clk 0:02:24.6]} 10... Bh3 {[%clk 0:01:53.8]} 11. Be3
{[%clk 0:02:17.7]} 11... h5 {[%clk 0:01:36.8]} 12. f3 {[%clk 0:01:57.6]} 12...
Bxg2 {[%clk 0:01:24.6]} 13. Kxg2 {[%clk 0:01:57]} 13... h4 {[%clk 0:01:23.3]}
14. g4 {[%clk 0:01:55.4]} 14... f5 {[%clk 0:01:15.3]} 15. h3 {[%clk 0:01:35.5]}
15... Bh6 {[%clk 0:01:08.7]} 16. Bxh6 {[%clk 0:01:28.5]} 16... Nxh6 {[%clk
0:01:09.6]} 17. b4 {[%clk 0:01:25.7]} 17... a5 {[%clk 0:01:03.9]} 18. bxa5
{[%clk 0:01:21.9]} 18... Rxa5 {[%clk 0:01:04.8]} 19. Nb5 {[%clk 0:01:14.8]}
19... Ra8 {[%clk 0:00:49.5]} 20. Kh2 {[%clk 0:01:09.1]} 20... f4 {[%clk
0:00:33.6]} 21. c4 {[%clk 0:01:05.2]} 21... b6 {[%clk 0:00:25.7]} 22. Qc3 {[%clk
0:00:59.6]} 22... Ra5 {[%clk 0:00:22.2]} 23. Nc1 {[%clk 0:00:56.8]} 23... Kf7
{[%clk 0:00:17.6]} 24. Nb3 {[%clk 0:00:56.6]} 24... Raa8 {[%clk 0:00:17.3]} 25.
a5 {[%clk 0:00:56.5]} 25... bxa5 {[%clk 0:00:18.2]} 26. Nxa5 {[%clk 0:00:56.7]}
26... c6 {[%clk 0:00:14.9]} 27. dxc6 {[%clk 0:00:50.5]} 27... Nxc6 {[%clk
0:00:15.8]} 28. Nxc6 {[%clk 0:00:49.9]} 28... Qxc6 {[%clk 0:00:16.7]} 29. Qb4
{[%clk 0:00:49.8]} 29... Rxa1 {[%clk 0:00:12.8]} 30. Rxa1 {[%clk 0:00:50.7]}
30... Rd8 {[%clk 0:00:11.3]} 31. Ra7+ {[%clk 0:00:45.3]} 31... Kg8 {[%clk
0:00:10.5]} 32. Nc3 {[%clk 0:00:37.8]} 32... Nf7 {[%clk 0:00:09.4]} 33. Nd5
{[%clk 0:00:37]} 33... Kf8 {[%clk 0:00:03.1]} 34. Kg2 {[%clk 0:00:23.4]} 34...
Ng5 {[%clk 0:00:02.1]} 35. Nf6 {[%clk 0:00:19.8]} 1-0

[Event "*** SCC Grand Prix: Titled Tuesday Blitz"]
[Site "Chess.com"]
[Date "2020.07.07"]
[Round "5"]
[White "ArjunErigaisi2003"]
[Black "temus_galaktionov"]
[Result "1-0"]
[WhiteElo "3016"]
[BlackElo "2656"]
[TimeControl "180+1"]
[EndTime "10:55:41 PDT"]
[Termination "ArjunErigaisi2003 won by resignation"]

1. e4 {[%clk 0:03:00.9]} 1... c6 {[%clk 0:03:00.9]} 2. d4 {[%clk 0:02:56]} 2...
g6 {[%clk 0:03:01.8]} 3. Nf3 {[%clk 0:02:54.6]} 3... d6 {[%clk 0:03:01.6]} 4.
Nc3 {[%clk 0:02:48.1]} 4... Bg7 {[%clk 0:03:02]} 5. Be3 {[%clk 0:02:47.3]} 5...
Nd7 {[%clk 0:03:01.8]} 6. Bc4 {[%clk 0:02:46.2]} 6... e5 {[%clk 0:03:01.7]} 7.
dxe5 {[%clk 0:02:34.3]} 7... dxe5 {[%clk 0:03:02.6]} 8. Ng5 {[%clk 0:02:18.6]}
8... Nh6 {[%clk 0:02:59.5]} 9. h4 {[%clk 0:02:18.9]} 9... Qe7 {[%clk 0:02:56.9]}
10. h5 {[%clk 0:02:12]} 10... b5 {[%clk 0:02:51.5]} 11. Bb3 {[%clk 0:02:07.5]}
11... Nc5 {[%clk 0:02:51.1]} 12. hxg6 {[%clk 0:02:02.7]} 12... hxg6 {[%clk
0:02:50.3]} 13. Rxh6 {[%clk 0:01:42.4]} 13... Bxh6 {[%clk 0:01:28.9]} 14. Bxc5
{[%clk 0:01:28.9]} 14... Qxc5 {[%clk 0:01:27.2]} 15. Nxf7 {[%clk 0:01:23.3]}
15... Bd2+ {[%clk 0:00:48.3]} 16. Kxd2 {[%clk 0:00:55]} 16... Qxf2+ {[%clk
0:00:47]} 17. Qe2 {[%clk 0:00:54.7]} 17... Qf4+ {[%clk 0:00:46.1]} 18. Qe3
{[%clk 0:00:52.1]} 18... Rh2 {[%clk 0:00:45.4]} 19. Ne2 {[%clk 0:00:44.4]} 19...
Qxe3+ {[%clk 0:00:43.5]} 20. Kxe3 {[%clk 0:00:45.3]} 20... c5 {[%clk 0:00:39.3]}
21. Bd5 {[%clk 0:00:42.5]} 21... Rb8 {[%clk 0:00:36.5]} 22. Nxe5 {[%clk
0:00:40.7]} 22... Rxg2 {[%clk 0:00:35.7]} 23. Rh1 {[%clk 0:00:37.1]} 23... Kf8
{[%clk 0:00:22.4]} 24. Rh8+ {[%clk 0:00:22.1]} 24... Kg7 {[%clk 0:00:22.2]} 25.
Rg8+ {[%clk 0:00:22.7]} 25... Kf6 {[%clk 0:00:21.6]} 26. Nc6 {[%clk 0:00:20]}
26... Bg4 {[%clk 0:00:19.1]} 27. e5+ {[%clk 0:00:17.5]} 27... Kg5 {[%clk
0:00:17.8]} 28. Rxg6+ {[%clk 0:00:11.3]} 28... Kxg6 {[%clk 0:00:17.5]} 29. Nf4+
{[%clk 0:00:11.8]} 29... Kg5 {[%clk 0:00:17.3]} 30. Bxg2 {[%clk 0:00:11.6]}
30... Rh8 {[%clk 0:00:17.9]} 31. e6 {[%clk 0:00:10.1]} 31... Kf6 {[%clk
0:00:17.7]} 32. e7 {[%clk 0:00:10.5]} 32... Bd7 {[%clk 0:00:17.4]} 33. Nd5+
{[%clk 0:00:10.8]} 33... Kf7 {[%clk 0:00:17.7]} 34. Ne5+ {[%clk 0:00:10.5]}
34... Ke6 {[%clk 0:00:18.2]} 35. Nxd7 {[%clk 0:00:10.4]} 35... Kxd7 {[%clk
0:00:19.1]} 36. Be4 {[%clk 0:00:10.4]} 36... Rh5 {[%clk 0:00:18.6]} 37. e8=Q+
{[%clk 0:00:10.2]} 1-0

[Event "*** SCC Grand Prix: Titled Tuesday Blitz"]
[Site "Chess.com"]
[Date "2020.07.07"]
[Round "5"]
[White "IMKarimIsmael"]
[Black "Efremov_Vlad"]
[Result "1-0"]
[WhiteElo "2406"]
[BlackElo "2214"]
[TimeControl "180+1"]
[EndTime "10:55:41 PDT"]
[Termination "IMKarimIsmael won by resignation"]

1. e4 {[%clk 0:03:00.9]} 1... c5 {[%clk 0:02:59.9]} 2. Nf3 {[%clk 0:03:00.3]}
2... e6 {[%clk 0:03:00.4]} 3. c3 {[%clk 0:02:59.9]} 3... Nf6 {[%clk 0:02:59.4]}
4. e5 {[%clk 0:02:59.5]} 4... Nd5 {[%clk 0:02:59.6]} 5. g3 {[%clk 0:03:00]} 5...
Nc6 {[%clk 0:02:55.6]} 6. Bg2 {[%clk 0:03:00.3]} 6... d6 {[%clk 0:02:53.2]} 7.
exd6 {[%clk 0:03:00.8]} 7... Bxd6 {[%clk 0:02:51.9]} 8. O-O {[%clk 0:03:01.7]}
8... O-O {[%clk 0:02:51.3]} 9. d4 {[%clk 0:03:02.2]} 9... b6 {[%clk 0:02:27.3]}
10. c4 {[%clk 0:02:54.6]} 10... Nde7 {[%clk 0:01:56.1]} 11. Nc3 {[%clk
0:02:53.4]} 11... Bb7 {[%clk 0:01:50.1]} 12. Ne4 {[%clk 0:02:48.4]} 12... cxd4
{[%clk 0:01:32.2]} 13. Nxd4 {[%clk 0:02:43.2]} 13... Nxd4 {[%clk 0:01:30.2]} 14.
Qxd4 {[%clk 0:02:44.1]} 14... Nf5 {[%clk 0:01:22.8]} 15. Qc3 {[%clk 0:02:28.7]}
15... Be7 {[%clk 0:01:14.9]} 16. Bf4 {[%clk 0:02:04.2]} 16... Bxe4 {[%clk
0:00:29.8]} 17. Bxe4 {[%clk 0:02:03.4]} 17... Bf6 {[%clk 0:00:30]} 18. Qc2
{[%clk 0:01:48.2]} 18... Nd4 {[%clk 0:00:27.4]} 19. Qd3 {[%clk 0:01:44.7]} 19...
Rc8 {[%clk 0:00:22.8]} 20. Bxh7+ {[%clk 0:01:38.8]} 20... Kh8 {[%clk 0:00:23.1]}
21. Be4 {[%clk 0:01:39.4]} 21... e5 {[%clk 0:00:20]} 22. Be3 {[%clk 0:01:30.2]}
22... Qc7 {[%clk 0:00:15.3]} 23. Qd1 {[%clk 0:01:17.9]} 23... g6 {[%clk
0:00:08]} 24. Rc1 {[%clk 0:01:16.4]} 24... Rfd8 {[%clk 0:00:06.4]} 25. Qg4
{[%clk 0:01:15.9]} 25... Qd7 {[%clk 0:00:05.4]} 26. Qxd7 {[%clk 0:01:08.6]}
26... Rxd7 {[%clk 0:00:06.3]} 27. Rfe1 {[%clk 0:01:08.3]} 27... Rdc7 {[%clk
0:00:06]} 28. b3 {[%clk 0:01:05.7]} 28... b5 {[%clk 0:00:06]} 29. Bd5 {[%clk
0:01:02.1]} 29... bxc4 {[%clk 0:00:05.4]} 30. bxc4 {[%clk 0:01:02.3]} 30... Rc5
{[%clk 0:00:03.8]} 31. Kg2 {[%clk 0:01:01.1]} 31... Kg7 {[%clk 0:00:04]} 32. f4
{[%clk 0:01:00.1]} 32... exf4 {[%clk 0:00:03.9]} 33. gxf4 {[%clk 0:00:59.4]}
33... Nf5 {[%clk 0:00:04.4]} 34. Bxc5 {[%clk 0:00:59.1]} 34... Rxc5 {[%clk
0:00:04.5]} 35. Rb1 {[%clk 0:00:55.4]} 35... Bd4 {[%clk 0:00:04]} 36. Rb7 {[%clk
0:00:54.5]} 36... Ne3+ {[%clk 0:00:04]} 37. Kf3 {[%clk 0:00:47.1]} 37... Nxd5
{[%clk 0:00:04.9]} 38. cxd5 {[%clk 0:00:47.2]} 38... Rxd5 {[%clk 0:00:05.5]} 39.
Ree7 {[%clk 0:00:40.2]} 39... Rd8 {[%clk 0:00:03.8]} 40. Rxf7+ {[%clk
0:00:40.2]} 40... Kg8 {[%clk 0:00:03.9]} 41. Rfd7 {[%clk 0:00:40]} 41... Rxd7
{[%clk 0:00:03.1]} 42. Rxd7 {[%clk 0:00:40.9]} 42... Bg7 {[%clk 0:00:03.4]} 43.
Rxa7 {[%clk 0:00:40.5]} 1-0

[Event "*** SCC Grand Prix: Titled Tuesday Blitz"]
[Site "Chess.com"]
[Date "2020.07.07"]
[Round "5"]
[White "Revnov"]
[Black "2nd_life"]
[Result "1-0"]
[WhiteElo "2689"]
[BlackElo "2478"]
[TimeControl "180+1"]
[EndTime "10:55:42 PDT"]
[Termination "Revnov won on time"]

1. e4 {[%clk 0:03:00.9]} 1... e5 {[%clk 0:02:56.4]} 2. Nf3 {[%clk 0:03:01]} 2...
Nc6 {[%clk 0:02:56.7]} 3. Bc4 {[%clk 0:03:00.4]} 3... Bc5 {[%clk 0:02:56]} 4. d3
{[%clk 0:03:00.7]} 4... Nf6 {[%clk 0:02:55.8]} 5. Nc3 {[%clk 0:03:00.9]} 5... h6
{[%clk 0:02:51.1]} 6. a3 {[%clk 0:02:56.6]} 6... d6 {[%clk 0:02:46.9]} 7. Na4
{[%clk 0:02:54.9]} 7... Bb6 {[%clk 0:02:42.3]} 8. O-O {[%clk 0:02:53.3]} 8...
Bg4 {[%clk 0:02:40.6]} 9. c3 {[%clk 0:02:47.1]} 9... O-O {[%clk 0:02:32.4]} 10.
b4 {[%clk 0:02:45]} 10... d5 {[%clk 0:02:20.2]} 11. exd5 {[%clk 0:02:45.9]}
11... Nxd5 {[%clk 0:02:20]} 12. Re1 {[%clk 0:02:42.4]} 12... Qd6 {[%clk
0:02:06.8]} 13. h3 {[%clk 0:02:40.2]} 13... Bh5 {[%clk 0:02:00.7]} 14. g4 {[%clk
0:01:49.5]} 14... Bg6 {[%clk 0:02:00]} 15. b5 {[%clk 0:01:47.1]} 15... Na5
{[%clk 0:01:59.7]} 16. Rxe5 {[%clk 0:01:18.3]} 16... Nf6 {[%clk 0:01:21.7]} 17.
Bf4 {[%clk 0:01:08]} 17... Nxc4 {[%clk 0:01:14.5]} 18. dxc4 {[%clk 0:01:08.9]}
18... Qxd1+ {[%clk 0:01:14.5]} 19. Rxd1 {[%clk 0:01:08]} 19... Bc2 {[%clk
0:01:14.7]} 20. Nxb6 {[%clk 0:01:06]} 20... axb6 {[%clk 0:00:53.2]} 21. Ra1
{[%clk 0:00:55.5]} 21... Bd3 {[%clk 0:00:34.7]} 22. Nd2 {[%clk 0:00:42.1]} 22...
g5 {[%clk 0:00:18.9]} 23. Be3 {[%clk 0:00:40.5]} 23... Rfe8 {[%clk 0:00:15.7]}
24. Rxe8+ {[%clk 0:00:38.5]} 24... Rxe8 {[%clk 0:00:16.6]} 25. Bd4 {[%clk
0:00:35.2]} 25... Ne4 {[%clk 0:00:16.1]} 26. Nxe4 {[%clk 0:00:33.5]} 26... Rxe4
{[%clk 0:00:15.4]} 27. f3 {[%clk 0:00:29]} 27... Re2 {[%clk 0:00:11.2]} 28. a4
{[%clk 0:00:28.6]} 28... Bxc4 {[%clk 0:00:09.8]} 29. a5 {[%clk 0:00:29]} 29...
Bxb5 {[%clk 0:00:08.9]} 30. axb6 {[%clk 0:00:29.1]} 30... cxb6 {[%clk
0:00:06.5]} 31. Ra8+ {[%clk 0:00:27.9]} 31... Re8 {[%clk 0:00:06.4]} 32. Ra7
{[%clk 0:00:28.4]} 32... Bc6 {[%clk 0:00:05.9]} 33. Kf2 {[%clk 0:00:28.6]} 33...
b5 {[%clk 0:00:04.8]} 34. Ra1 {[%clk 0:00:28.3]} 34... Kh7 {[%clk 0:00:05]} 35.
h4 {[%clk 0:00:28.1]} 35... gxh4 {[%clk 0:00:04.7]} 36. Rh1 {[%clk 0:00:28.6]}
36... Kg6 {[%clk 0:00:03.8]} 37. Rxh4 {[%clk 0:00:29.1]} 37... f6 {[%clk
0:00:01.5]} 38. f4 {[%clk 0:00:28.7]} 38... f5 {[%clk 0:00:01]} 39. Be5 {[%clk
0:00:22.1]} 1-0

[Event "*** SCC Grand Prix: Titled Tuesday Blitz"]
[Site "Chess.com"]
[Date "2020.07.07"]
[Round "5"]
[White "Quiet_Desperation"]
[Black "mbachez"]
[Result "1-0"]
[WhiteElo "2224"]
[BlackElo "2417"]
[TimeControl "180+1"]
[EndTime "10:55:45 PDT"]
[Termination "Quiet_Desperation won by resignation"]

1. e4 {[%clk 0:03:00.9]} 1... c6 {[%clk 0:02:58.9]} 2. Nf3 {[%clk 0:03:00.6]}
2... d5 {[%clk 0:02:58.6]} 3. Nc3 {[%clk 0:03:00.5]} 3... dxe4 {[%clk
0:02:58.8]} 4. Nxe4 {[%clk 0:03:00.7]} 4... Nf6 {[%clk 0:02:59.4]} 5. Nxf6+
{[%clk 0:03:00.4]} 5... exf6 {[%clk 0:02:58.1]} 6. d4 {[%clk 0:03:01.1]} 6...
Bd6 {[%clk 0:02:58.2]} 7. Bd3 {[%clk 0:03:01.4]} 7... O-O {[%clk 0:02:58.6]} 8.
Be3 {[%clk 0:03:01.7]} 8... Bg4 {[%clk 0:02:58.9]} 9. c3 {[%clk 0:03:01.6]} 9...
Nd7 {[%clk 0:02:57.9]} 10. Qc2 {[%clk 0:03:01.6]} 10... h6 {[%clk 0:02:51.7]}
11. h3 {[%clk 0:02:59.1]} 11... Bxf3 {[%clk 0:02:51.9]} 12. gxf3 {[%clk
0:02:58.9]} 12... c5 {[%clk 0:02:51.5]} 13. Rg1 {[%clk 0:02:52.2]} 13... Kh8
{[%clk 0:02:49.9]} 14. O-O-O {[%clk 0:02:42.6]} 14... Qc7 {[%clk 0:02:48.4]} 15.
Qd2 {[%clk 0:02:40.6]} 15... cxd4 {[%clk 0:02:11.8]} 16. Bxd4 {[%clk 0:02:39.4]}
16... Bf4 {[%clk 0:02:09.2]} 17. Be3 {[%clk 0:02:39.4]} 17... Bxe3 {[%clk
0:02:09.4]} 18. fxe3 {[%clk 0:02:39.1]} 18... Nc5 {[%clk 0:02:09]} 19. Qg2
{[%clk 0:02:34.2]} 19... Rg8 {[%clk 0:01:55.9]} 20. Bc2 {[%clk 0:02:33.2]} 20...
b5 {[%clk 0:01:54.6]} 21. Kb1 {[%clk 0:02:26.6]} 21... a5 {[%clk 0:01:51.5]} 22.
Rd5 {[%clk 0:02:23.6]} 22... b4 {[%clk 0:01:46]} 23. Qd2 {[%clk 0:02:12.6]}
23... Rad8 {[%clk 0:01:41.3]} 24. c4 {[%clk 0:02:07.6]} 24... Rxd5 {[%clk
0:01:38.5]} 25. Qxd5 {[%clk 0:02:03.7]} 25... Qe5 {[%clk 0:01:32.5]} 26. Qxe5
{[%clk 0:01:55.9]} 26... fxe5 {[%clk 0:01:33.4]} 27. Rd1 {[%clk 0:01:55.1]}
27... f6 {[%clk 0:01:30.2]} 28. Bg6 {[%clk 0:01:52.3]} 28... Rc8 {[%clk
0:01:26.4]} 29. Rd5 {[%clk 0:01:48.9]} 29... Nb7 {[%clk 0:01:15.1]} 30. b3
{[%clk 0:01:40.8]} 30... Kg8 {[%clk 0:01:14.3]} 31. Rb5 {[%clk 0:01:39.2]} 31...
Rc7 {[%clk 0:01:10]} 32. Be4 {[%clk 0:01:37.2]} 32... Nd6 {[%clk 0:01:09.2]} 33.
Rxa5 {[%clk 0:01:37.2]} 33... f5 {[%clk 0:01:06.9]} 34. Bc2 {[%clk 0:01:27.5]}
34... e4 {[%clk 0:01:03.1]} 35. fxe4 {[%clk 0:01:24.9]} 35... fxe4 {[%clk
0:01:02.9]} 36. Re5 {[%clk 0:01:19.7]} 36... Kf7 {[%clk 0:00:59.5]} 37. c5
{[%clk 0:01:06.4]} 37... Nb7 {[%clk 0:00:55]} 38. Rxe4 {[%clk 0:01:00.9]} 38...
Nxc5 {[%clk 0:00:55.2]} 39. Rxb4 {[%clk 0:00:58.6]} 39... Ke6 {[%clk 0:00:56.1]}
40. Rc4 {[%clk 0:00:58.4]} 40... Kd5 {[%clk 0:00:45.5]} 41. e4+ {[%clk
0:00:54.4]} 41... Kd6 {[%clk 0:00:45.1]} 42. b4 {[%clk 0:00:52.9]} 42... Ne6
{[%clk 0:00:45.1]} 43. Rxc7 {[%clk 0:00:52.7]} 43... Kxc7 {[%clk 0:00:46]} 44.
e5 {[%clk 0:00:49.7]} 44... Nf4 {[%clk 0:00:41.4]} 45. Bf5 {[%clk 0:00:48]}
45... g6 {[%clk 0:00:41.8]} 46. Be4 {[%clk 0:00:45.3]} 46... Kd7 {[%clk
0:00:36]} 47. a4 {[%clk 0:00:44.9]} 47... g5 {[%clk 0:00:36.2]} 48. a5 {[%clk
0:00:44.4]} 48... Kc7 {[%clk 0:00:31.3]} 49. a6 {[%clk 0:00:41.1]} 49... Kb6
{[%clk 0:00:30.9]} 50. b5 {[%clk 0:00:41.3]} 50... Nxh3 {[%clk 0:00:27.9]} 51.
e6 {[%clk 0:00:41.2]} 51... Nf2 {[%clk 0:00:25.5]} 52. e7 {[%clk 0:00:39.1]}
52... Nxe4 {[%clk 0:00:26.4]} 53. e8=Q {[%clk 0:00:39.3]} 53... Nc3+ {[%clk
0:00:27.3]} 54. Kc2 {[%clk 0:00:39.1]} 54... Nxb5 {[%clk 0:00:28.2]} 55. Qxb5+
{[%clk 0:00:36.2]} 55... Kxb5 {[%clk 0:00:29.1]} 56. a7 {[%clk 0:00:36.6]} 1-0

[Event "*** SCC Grand Prix: Titled Tuesday Blitz"]
[Site "Chess.com"]
[Date "2020.07.07"]
[Round "5"]
[White "GjakanTati"]
[Black "MrChampion_Coach"]
[Result "1-0"]
[WhiteElo "2572"]
[BlackElo "2410"]
[TimeControl "180+1"]
[EndTime "10:55:46 PDT"]
[Termination "GjakanTati won on time"]

1. d4 {[%clk 0:03:00.9]} 1... Nf6 {[%clk 0:02:59.3]} 2. Nf3 {[%clk 0:03:00.4]}
2... g6 {[%clk 0:02:57.7]} 3. g3 {[%clk 0:02:59.6]} 3... Bg7 {[%clk 0:02:57.4]}
4. Bg2 {[%clk 0:03:00.5]} 4... O-O {[%clk 0:02:57.8]} 5. O-O {[%clk 0:03:01.3]}
5... d6 {[%clk 0:02:55.3]} 6. c4 {[%clk 0:03:01.9]} 6... Nc6 {[%clk 0:02:55.4]}
7. Nc3 {[%clk 0:03:02.5]} 7... a6 {[%clk 0:02:55.3]} 8. d5 {[%clk 0:02:56.9]}
8... Na5 {[%clk 0:02:54.8]} 9. Nd2 {[%clk 0:02:57.5]} 9... c5 {[%clk 0:02:53.2]}
10. a4 {[%clk 0:02:50.1]} 10... e5 {[%clk 0:02:48.6]} 11. e4 {[%clk 0:02:45]}
11... Nh5 {[%clk 0:02:31]} 12. b3 {[%clk 0:02:40.8]} 12... f5 {[%clk 0:02:30.6]}
13. exf5 {[%clk 0:02:40.6]} 13... Bxf5 {[%clk 0:02:22]} 14. g4 {[%clk
0:02:39.2]} 14... Bd3 {[%clk 0:02:22.4]} 15. gxh5 {[%clk 0:02:37.2]} 15... Bxf1
{[%clk 0:02:22.7]} 16. Qxf1 {[%clk 0:02:36.8]} 16... e4 {[%clk 0:02:21.7]} 17.
Ndxe4 {[%clk 0:02:26.1]} 17... Nxb3 {[%clk 0:02:21.4]} 18. Bg5 {[%clk
0:02:24.6]} 18... Qa5 {[%clk 0:02:04.7]} 19. Rb1 {[%clk 0:02:23.8]} 19... Nd4
{[%clk 0:01:56.3]} 20. Rxb7 {[%clk 0:02:21]} 20... Nf5 {[%clk 0:01:51.7]} 21.
hxg6 {[%clk 0:02:14.5]} 21... hxg6 {[%clk 0:01:52.6]} 22. Qd3 {[%clk 0:02:14.1]}
22... Rab8 {[%clk 0:01:45.2]} 23. Rxb8 {[%clk 0:01:38.7]} 23... Rxb8 {[%clk
0:01:46.1]} 24. Ne2 {[%clk 0:01:32.5]} 24... Qe1+ {[%clk 0:01:38.3]} 25. Bf1
{[%clk 0:01:31.5]} 25... Rb1 {[%clk 0:01:35.4]} 26. Nf4 {[%clk 0:01:16.3]} 26...
Nd4 {[%clk 0:01:11]} 27. Ng3 {[%clk 0:00:53.1]} 27... Rb3 {[%clk 0:00:56.7]} 28.
Qxg6 {[%clk 0:00:49.2]} 28... Nf3+ {[%clk 0:00:27.9]} 29. Kg2 {[%clk 0:00:45.8]}
29... Nxg5 {[%clk 0:00:12.6]} 30. Qxg5 {[%clk 0:00:43.1]} 30... Qe5 {[%clk
0:00:10.4]} 31. Qd8+ {[%clk 0:00:37.5]} 31... Kh7 {[%clk 0:00:09.3]} 32. Qh4+
{[%clk 0:00:36.4]} 32... Bh6 {[%clk 0:00:07.7]} 33. Ne6 {[%clk 0:00:34]} 33...
Rc3 {[%clk 0:00:03.4]} 34. Qe7+ {[%clk 0:00:33]} 34... Bg7 {[%clk 0:00:03.5]}
35. Nf8+ {[%clk 0:00:25.1]} 35... Kg8 {[%clk 0:00:02.9]} 36. Ne6 {[%clk
0:00:22.3]} 36... Qf6 {[%clk 0:00:01.7]} 37. Qe8+ {[%clk 0:00:20.9]} 37... Kh7
{[%clk 0:00:01.4]} 38. Qh5+ {[%clk 0:00:20.7]} 1-0

[Event "*** SCC Grand Prix: Titled Tuesday Blitz"]
[Site "Chess.com"]
[Date "2020.07.07"]
[Round "5"]
[White "OK97"]
[Black "AliKa2810"]
[Result "1-0"]
[WhiteElo "2760"]
[BlackElo "2584"]
[TimeControl "180+1"]
[EndTime "10:55:47 PDT"]
[Termination "OK97 won by resignation"]

1. d4 {[%clk 0:03:00.9]} 1... Nf6 {[%clk 0:02:57.4]} 2. c4 {[%clk 0:03:00.7]}
2... g6 {[%clk 0:02:57.4]} 3. Nc3 {[%clk 0:03:00.6]} 3... Bg7 {[%clk 0:02:57.7]}
4. e4 {[%clk 0:03:00.8]} 4... d6 {[%clk 0:02:58.1]} 5. Nf3 {[%clk 0:03:00]} 5...
O-O {[%clk 0:02:57.5]} 6. Be2 {[%clk 0:03:00.2]} 6... e5 {[%clk 0:02:57.9]} 7.
d5 {[%clk 0:03:00.6]} 7... Na6 {[%clk 0:02:54.1]} 8. Be3 {[%clk 0:02:54.5]} 8...
Ng4 {[%clk 0:02:47.9]} 9. Bg5 {[%clk 0:02:54.4]} 9... f6 {[%clk 0:02:47.2]} 10.
Bh4 {[%clk 0:02:54.8]} 10... Qe8 {[%clk 0:02:32.2]} 11. Nd2 {[%clk 0:02:50.4]}
11... Nh6 {[%clk 0:02:23.3]} 12. f3 {[%clk 0:02:44.3]} 12... f5 {[%clk
0:02:15.6]} 13. Rb1 {[%clk 0:02:32.8]} 13... c5 {[%clk 0:02:03.1]} 14. dxc6
{[%clk 0:02:30.7]} 14... bxc6 {[%clk 0:02:04]} 15. b4 {[%clk 0:02:29]} 15... Rb8
{[%clk 0:02:02.6]} 16. b5 {[%clk 0:01:59.4]} 16... Nc5 {[%clk 0:02:02]} 17. Bf2
{[%clk 0:01:54.9]} 17... Be6 {[%clk 0:01:26.4]} 18. O-O {[%clk 0:01:27.2]} 18...
Kh8 {[%clk 0:01:22.7]} 19. Nb3 {[%clk 0:01:23.7]} 19... Nxb3 {[%clk 0:01:16]}
20. axb3 {[%clk 0:01:19.6]} 20... Nf7 {[%clk 0:01:05]} 21. Bxa7 {[%clk
0:01:17.4]} 21... Ra8 {[%clk 0:01:02.4]} 22. Bf2 {[%clk 0:01:14]} 22... cxb5
{[%clk 0:00:48.8]} 23. Nxb5 {[%clk 0:01:12.5]} 23... Qc6 {[%clk 0:00:46.5]} 24.
Nc3 {[%clk 0:01:06.6]} 24... Ng5 {[%clk 0:00:38.4]} 25. Bd3 {[%clk 0:00:59.8]}
25... Ra3 {[%clk 0:00:27.8]} 26. Qc1 {[%clk 0:00:58.7]} 26... Nxf3+ {[%clk
0:00:10.7]} 27. gxf3 {[%clk 0:00:58.2]} 27... Raa8 {[%clk 0:00:10]} 28. Nd5
{[%clk 0:00:50.3]} 28... Qd7 {[%clk 0:00:09.4]} 29. Kh1 {[%clk 0:00:41]} 29...
f4 {[%clk 0:00:08.8]} 30. c5 {[%clk 0:00:32.7]} 30... Ra2 {[%clk 0:00:08.2]} 31.
c6 {[%clk 0:00:30.1]} 31... Qd8 {[%clk 0:00:08.4]} 32. c7 {[%clk 0:00:25]} 32...
Qg5 {[%clk 0:00:08.5]} 33. Rb2 {[%clk 0:00:22.6]} 33... Rxb2 {[%clk 0:00:06.3]}
34. Qxb2 {[%clk 0:00:23.5]} 34... Qh5 {[%clk 0:00:06.8]} 35. Bb6 {[%clk
0:00:20.5]} 35... Bxd5 {[%clk 0:00:06.4]} 36. exd5 {[%clk 0:00:20.4]} 36... e4
{[%clk 0:00:07]} 37. Bd4 {[%clk 0:00:19.9]} 37... exd3 {[%clk 0:00:03.9]} 38.
Bxg7+ {[%clk 0:00:19.6]} 38... Kg8 {[%clk 0:00:04.8]} 39. Bxf8 {[%clk
0:00:19.1]} 1-0

[Event "*** SCC Grand Prix: Titled Tuesday Blitz"]
[Site "Chess.com"]
[Date "2020.07.07"]
[Round "5"]
[White "Mikhail_Golubev"]
[Black "dretch"]
[Result "0-1"]
[WhiteElo "2605"]
[BlackElo "2797"]
[TimeControl "180+1"]
[EndTime "10:55:48 PDT"]
[Termination "dretch won on time"]

1. e4 {[%clk 0:03:00.9]} 1... e6 {[%clk 0:03:00.2]} 2. d4 {[%clk 0:03:00.4]}
2... d5 {[%clk 0:03:00.7]} 3. Nc3 {[%clk 0:03:00.7]} 3... Nf6 {[%clk 0:03:00.5]}
4. Bg5 {[%clk 0:02:59.6]} 4... dxe4 {[%clk 0:03:00.3]} 5. Nxe4 {[%clk
0:02:58.4]} 5... Be7 {[%clk 0:03:00.7]} 6. Nxf6+ {[%clk 0:02:56.7]} 6... Bxf6
{[%clk 0:03:01.6]} 7. Bxf6 {[%clk 0:02:56.8]} 7... Qxf6 {[%clk 0:03:02.5]} 8.
Qd2 {[%clk 0:02:57]} 8... O-O {[%clk 0:02:57.5]} 9. O-O-O {[%clk 0:02:53.3]}
9... e5 {[%clk 0:02:54.1]} 10. dxe5 {[%clk 0:02:42.6]} 10... Qxe5 {[%clk
0:02:55]} 11. Nf3 {[%clk 0:02:42.6]} 11... Qc5 {[%clk 0:02:54.9]} 12. Bd3 {[%clk
0:02:28.9]} 12... Nc6 {[%clk 0:02:51.2]} 13. Rhe1 {[%clk 0:02:24]} 13... Nb4
{[%clk 0:02:44.9]} 14. Re5 {[%clk 0:01:23.9]} 14... Nxd3+ {[%clk 0:02:40.1]} 15.
Qxd3 {[%clk 0:01:24]} 15... Qxf2 {[%clk 0:02:39.1]} 16. Rf1 {[%clk 0:00:45.6]}
16... Qb6 {[%clk 0:01:46.2]} 17. Ng5 {[%clk 0:00:30.3]} 17... Qg6 {[%clk
0:01:45.6]} 18. Rxf7 {[%clk 0:00:20.4]} 18... Qxd3 {[%clk 0:00:59.9]} 19. Rxf8+
{[%clk 0:00:18.2]} 19... Kxf8 {[%clk 0:01:00.8]} 20. cxd3 {[%clk 0:00:18.3]}
20... h6 {[%clk 0:01:00.1]} 21. Ne6+ {[%clk 0:00:18]} 21... Bxe6 {[%clk
0:01:00]} 22. Rxe6 {[%clk 0:00:18]} 22... Re8 {[%clk 0:00:45.8]} 23. Rxe8+
{[%clk 0:00:18]} 23... Kxe8 {[%clk 0:00:46.7]} 24. Kd2 {[%clk 0:00:18]} 24...
Ke7 {[%clk 0:00:47]} 25. Ke3 {[%clk 0:00:18.5]} 25... Ke6 {[%clk 0:00:45]} 26.
Ke4 {[%clk 0:00:13.5]} 26... c5 {[%clk 0:00:45]} 27. a4 {[%clk 0:00:10.3]} 27...
b6 {[%clk 0:00:21.9]} 28. d4 {[%clk 0:00:09.2]} 28... Kd6 {[%clk 0:00:18.2]} 29.
b3 {[%clk 0:00:07.4]} 29... a6 {[%clk 0:00:16.1]} 30. dxc5+ {[%clk 0:00:06.2]}
30... Kxc5 {[%clk 0:00:15.9]} 31. Kd3 {[%clk 0:00:06.3]} 31... Kb4 {[%clk
0:00:15.9]} 32. Kc2 {[%clk 0:00:06.2]} 32... Ka3 {[%clk 0:00:15.9]} 33. Kc3
{[%clk 0:00:05.1]} 33... h5 {[%clk 0:00:11.6]} 34. h4 {[%clk 0:00:03.7]} 34...
b5 {[%clk 0:00:07.9]} 35. a5 {[%clk 0:00:01.9]} 35... Ka2 {[%clk 0:00:06.9]} 0-1